Workbook

Sheet SCH G-6 TY
A1: TEXAS GAS SERVICE COMPANY
A2: January 1, 2024 - December 31, 2024
A4: WORKPAPER SUPPORTING TEST YEAR BENEFITS AND PAYROLL TAX
A6: Line No. | B6: FERC | C6: Natural Account | D6: Account Description | E6: Test Year | F6: Percent | G6: Shared Service | H6: Central Gulf | I6: RGV | J6: West North | K6: Direct | L6: Total
B7: (a) | C7: (b) | D7: (c) | E7: (d) | G7: (e) | H7: (f) | I7: (g) | J7: (h) | K7: (i) = (f)+(g)+(h) | L7: (j)=(e)+(i)
A8: 1 | B8: 4081 | C8: 4081101 | D8: GEN TAX FED UNEMPL INS TAX | E8: 44621.75 | G8: =$E8*F$39 -> 11206.79762 | H8: =$E8*F$40 -> 16643.38474 | I8: =$E8*F$41 -> 4470.209903 | J8: =$E8*F$42 -> 12301.35774 | K8: =SUM(H8:J8) -> 33414.95238 | L8: =K8+G8 -> 44621.75
A9: =A8+1 -> 2 | B9: 4081 | C9: 4081102 | D9: GEN TAX FICA | E9: 5934212.32 | G9: =$E9*F$39 -> 1490383.422 | H9: =$E9*F$40 -> 2213390.976 | I9: =$E9*F$41 -> 594489.7875 | J9: =$E9*F$42 -> 1635948.134 | K9: 4443828.898 | L9: =K9+G9 -> 5934212.32
A10: 3 | B10: 4081 | C10: 4081132 | D10: GEN TAX STATE UNEMPL INS | E10: 162463.57 | G10: =$E10*F$39 -> 40802.88982 | H10: =$E10*F$40 -> 60596.98919 | I10: =$E10*F$41 -> 16275.61132 | J10: =$E10*F$42 -> 44788.07967 | K10: 121660.6802 | L10: =K10+G10 -> 162463.57
A11: 4 | B11: 4081 Total | E11: =SUM(E8:E10) -> 6141297.64 | F11: =E11/E$30 -> 0.2597334158 | G11: =SUM(G8:G10) -> 1542393.11 | H11: =SUM(H8:H10) -> 2290631.35 | I11: =SUM(I8:I10) -> 615235.6087 | J11: =SUM(J8:J10) -> 1693037.571 | K11: =SUM(K8:K10) -> 4598904.53 | L11: =SUM(L8:L10) -> 6141297.64
A12: 5 | B12: 9260 | C12: 9260101 | D12: A&G EMPL BEN 401(K) CO MATCH | E12: 3806366.52 | G12: =$E12*F$39 -> 955972.799 | H12: =$E12*F$40 -> 1419729.671 | I12: =$E12*F$41 -> 381322.0528 | J12: =$E12*F$42 -> 1049341.997 | K12: =SUM(H12:J12) -> 2850393.721 | L12: =K12+G12 -> 3806366.52
A13: 6 | B13: 9260 | C13: 9260102 | D13: A&G EMPL BEN 401(K) ADMIN | E13: 145521.48 | G13: 36547.8668 | H13: 54277.79009 | I13: 14578.35161 | J13: 40117.4715 | K13: 108973.6132 | L13: 145521.48
A14: 7 | B14: 9260 | C14: 9260112 | D14: A&G EMPL BEN SERP ADMIN | E14: 281.61 | G14: 70.72663615 | H14: 105.0371977 | I14: 28.21170865 | J14: 77.63445747 | K14: 210.8833638 | L14: 281.61
A15: 8 | B15: 9260 | C15: 9260115 | D15: A&G EMPL BEN PENSION ADMIN | E15: 36694.62 | G15: 9215.890904 | H15: 13686.65905 | I15: 3676.069488 | J15: 10116.00055 | K15: 27478.7291 | L15: 36694.62
A16: 9 | B16: 9260 | C16: 9260141 | D16: A&G EMPL BEN PROFIT SHARING | E16: 2620305.5 | G16: 658092.3749 | H16: 977342.9456 | I16: 262502.3804 | J16: 722367.799 | K16: 1962213.125 | L16: 2620305.5
A17: 10 | B17: 9260 | C17: 9260190 | D17: A&G EMPL BEN RESERVE | E17: 10530974.76 | G17: 2644864.956 | H17: 3927928.973 | I17: 1054993.757 | J17: 2903187.075 | K17: 7886109.804 | L17: 10530974.76
A18: 11 | B18: 9260 | C18: 9260302 | D18: A&G EMPL BEN TUITION LOANS | E18: 36554.57 | G18: 36554.57 | K18: 0 | L18: 36554.57
A19: 12 | B19: 9260 | C19: 9260307 | D19: A&G EMPL BEN EMPLOYEE EVENTS | E19: 34136.5 | G19: 20959.15 | H19: 3815.53 | I19: 1177.56 | J19: 8184.26 | K19: =SUM(H19:J19) -> 13177.35 | L19: 34136.5
A20: 13 | B20: 9260 | C20: 9260310 | D20: A&G EMPL BEN SVC RECOGNITION | E20: 59200 | G20: 59200 | K20: =SUM(H20:J20) -> 0 | L20: 59200
A21: 14 | B21: 9260 | C21: 9260326 | D21: A&G EMPL BEN EMPL ASST PROGRAM | E21: 21100.26 | G21: 21100.26 | K21: 0 | L21: 21100.26
A22: 15 | B22: 9260 | C22: 9260328 | D22: A&G EMPL BEN DISABILITY | E22: 61181.31 | G22: 61181.31 | K22: 0 | L22: 61181.31
A23: 16 | B23: 9260 | C23: 9260337 | D23: A&G EMPL BEN WELLNESS PROGRAM | E23: 74.16 | G23: 74.16 | K23: 0 | L23: 74.16
A24: 17 | B24: 9260 | C24: 9260413 | D24: A&G EMPL BEN ACTUARY ONE GAS PENSION-SC | E24: 1204699 | G24: =$E24*F$39 -> 302561.3716 | H24: =$E24*F$40 -> 449338.4719 | I24: =$E24*F$41 -> 120686.8265 | J24: =$E24*F$42 -> 332112.3301 | K24: 902137.6284 | L24: 1204699
A25: 18 | B25: 9260 | C25: 9260431 | D25: A&G EMPL BEN ACTUARY OPEB-SC | E25: 30824 | G25: =$E25*F$39 -> 7741.478757 | H25: =$E25*F$40 -> 11496.98726 | I25: =$E25*F$41 -> 3087.950384 | J25: =$E25*F$42 -> 8497.583598 | K25: 23082.52124 | L25: 30824
A26: 19 | B26: 9260 | C26: 9260511 | D26: A&G EMPL BEN ACTUARY SERP-NSC | E26: 3362 | G26: =$E26*F$39 -> 844.3696983 | H26: =$E26*F$40 -> 1253.986218 | I26: =$E26*F$41 -> 336.8053851 | J26: =$E26*F$42 -> 926.8386989 | K26: 2517.630302 | L26: 3362
A27: 20 | B27: 9260 | C27: 9260513 | D27: A&G EMPL BEN ACTUARY ONE GAS PENSION-NSC | E27: -1215596 | G27: =$E27*F$39 -> -305298.1641 | H27: =$E27*F$40 -> -453402.9239 | I27: =$E27*F$41 -> -121778.4887 | J27: =$E27*F$42 -> -335116.4233 | K27: -910297.8359 | L27: -1215596
A28: 21 | B28: 9260 | C28: 9260531 | D28: A&G EMPL BEN ACTUARY OPEB-NSC | E28: 127641 | G28: =$E28*F$39 -> 32057.16617 | H28: =$E28*F$40 -> 47608.58263 | I28: =$E28*F$41 -> 12787.08393 | J28: =$E28*F$42 -> 35188.16727 | K28: 95583.83383 | L28: 127641
A29: 22 | B29: 9260 Total | E29: =SUM(E12:E28) -> 17503321.29 | F29: =E29/E$30 -> 0.7402665842 | G29: =SUM(G12:G28) -> 4541740.286 | H29: 6453181.711 | I29: 1733398.56 | J29: 4775000.733 | K29: 12961581 | L29: 17503321.29
A30: 23 | B30: Total Shared Service Test Year Benefits | E30: =SUM(E29+E11) -> 23644618.93 | F30: 1 | G30: 6084133.396 | H30: 8743813.061 | I30: 2348634.169 | J30: 6468038.304 | K30: 17560485.53 | L30: 23644618.93
A32: =A30+1 -> 24 | B32: 4081 | C32: 4081100 | D32: GEN TAX O/H TRF TO CAPITAL | E32: -2980794.52 | G32: =$E32*F$39 -> -748629.5567 | H32: =$E32*F$40 -> -1111801.084 | I32: =$E32*F$41 -> -298616.1946 | J32: =$E32*F$42 -> -821747.6843 | K32: =SUM(H32:J32) -> -2232164.963 | L32: =K32+G32 -> -2980794.52
A33: =A32+1 -> 25 | B33: 9260 | C33: 9260902 | D33: A&G EMPL BEN O/H TRF CAPITAL | E33: -9481479.15 | G33: =$E33*F$39 -> -2381283.072 | H33: =$E33*F$40 -> -3536479.529 | I33: =$E33*F$41 -> -949855.216 | J33: =$E33*F$42 -> -2613861.332 | K33: -7100196.078 | L33: =K33+G33 -> -9481479.15
A34: =A33+1 -> 26 | B34: 9260 | C34: 9260905 | D34: A&G EMPL BEN O/H TRF CAPITAL - NSC | E34: 668122.13 | G34: =$E34*F$39 -> 167799.5483 | H34: =$E34*F$40 -> 249201.6486 | I34: =$E34*F$41 -> 66932.51972 | J34: =$E34*F$42 -> 184188.4134 | K34: 500322.5817 | L34: =K34+G34 -> 668122.13
A35: 27 | B35: Total Shared Service Test Year Benefit and Tax O/H Transferred to Capital | E35: =SUM(E32:E34) -> -11794151.54 | G35: =SUM(G32:G34) -> -2962113.081 | H35: =SUM(H32:H34) -> -4399078.965 | I35: -1181538.891 | J35: -3251420.603 | K35: =SUM(K32:K34) -> -8832038.459 | L35: -11794151.54
E36: =E30+E35 -> 11850467.39 | G36: =G30+G35 -> 3122020.315 | H36: =H30+H35 -> 4344734.096 | I36: 1167095.278 | J36: 3216617.701 | K36: =K30+K35 -> 8728447.075 | L36: 11850467.39
A38: =A35+1 -> 28 | D38: Service Area | E38: Test Year Payroll Dollars | F38: Percent of Service Area Test Year Payroll to Total
A39: =A38+1 -> 29 | D39: SHARED SERVICES | E39: 20051949.11 | F39: =E39/$E43 -> 0.2511510108
A40: =A39+1 -> 30 | D40: CENTRAL GULF | E40: 29779453.09 | F40: =E40/$E43 -> 0.3729881671
A41: 31 | D41: RGV | E41: 7998397.45 | F41: =E41/$E43 -> 0.100180067
A42: 32 | D42: WEST NORTH | E42: 22010409.02 | F42: =E42/$E43 -> 0.2756807552
A43: 33 | D43: Grand Total | E43: 79840208.67 | F43: =E43/$E43 -> 1
